fUSD/lending_fUSD_20260108
["ID","MTS","AMOUNT","RATE_DAILY","PERIOD"]
[400996797,1767881989702,602.68,8.013e-05,2]
[400996798,1767881989765,602.68,8.312e-05,2]
[400996799,1767881989826,602.68,8.611e-05,2]
[400996800,1767881989929,602.68,8.911e-05,2]
[400996801,1767881990064,602.68,9.21e-05,2]
[400996802,1767881990124,602.68,9.509e-05,2]
[400996803,1767881990492,285.79733337,9.808e-05,2]
[400996804,1767881990526,316.88266663,9.808e-05,2]
[400996805,1767881990709,602.68,0.00010108,2]
[400996806,1767881991810,-171.44717806,0.00010407,2]
[400996807,1767881993753,-250.0,0.00010407,2]
[400996812,1767882012472,-181.23282194,0.00010407,2]
[400996813,1767882012496,-162.14755571,0.00010407,2]
[400996821,1767882030988,-72.85244429,0.00010407,2]
[400996846,1767882155638,10000.0,0.00010426,2]
[400996858,1767882241866,10000.0,0.00010426,2]
[400996869,1767882252697,0.01,0.00010456,2]
[400996870,1767882252725,9999.99,0.00010456,2]
[400996871,1767882262533,0.02,0.00010456,2]
[400996872,1767882262560,9999.98,0.00010456,2]
[400996873,1767882275281,0.03,0.00010456,2]
[400996874,1767882275308,9991.83,0.00010456,2]
[400996907,1767882356801,-349.62305256,0.0001055,2]
[400996911,1767882358212,-300.0,0.0001055,2]
[400996912,1767882359615,-300.0,0.0001055,2]
[400996913,1767882366506,-325.52564244,0.0001055,2]
[400996914,1767882367715,8.18,7.945e-05,2]
[400996915,1767882367749,3994.325237,7.945e-05,2]
[400996916,1767882368025,-202.37576797,0.0001055,2]
[400996917,1767882369180,-3522.48553703,0.0001055,2]
[400996954,1767882581792,-183.51205855,0.00010501,2]
[400996955,1767882583828,-268.42305266,0.0001049,2]
[400996956,1767882583850,-70.23003493,0.00010501,2]
[400996957,1767882589743,-405.15923058,0.00010501,2]
[400996959,1767882591138,-2667.45667571,0.00010501,2]
[400996960,1767882591459,-10000.01,0.00010501,2]
[400996961,1767882591623,-461.24628116,0.00010501,2]
[400996962,1767882591756,-1212.40571907,0.00010501,2]
[400996970,1767882622412,-238.0,0.00010691,2]
[400996971,1767882622434,-32.0,0.00010691,2]
[400996978,1767882631318,171.28,8.396e-05,2]
[400996985,1767882631518,-344.81,0.00010691,2]
[400996990,1767882631577,-623.19,0.00010691,2]
[400996992,1767882631586,-250.0,0.00010699,2]
[400996994,1767882631596,-602.68,0.00010706,2]
[400996995,1767882631605,-254.06537614,0.00010806,2]
[400996996,1767882631614,-644.1,0.00010821,2]
[400996997,1767882631627,-150.0,0.00010959,2]
[400996998,1767882631637,-500.0,0.00011,2]
[400996999,1767882631646,-602.68,0.00011005,2]
[400997000,1767882631656,-300.0,0.0001103,2]
[400997001,1767882631666,-503.69946812,0.0001103,2]
[400997002,1767882631678,-696.30053188,0.0001103,2]
[400997003,1767882631689,-300.0,0.0001103,2]
[400997004,1767882631699,-64.62675318,0.0001103,2]
[400997005,1767882631718,-235.37324682,0.0001103,2]
[400997006,1767882631727,-1200.0,0.00011031,2]
[400997007,1767882631737,-6141.5,0.00011032,2]
[400997008,1767882631746,-273.84,0.00011092,2]
[400997009,1767882631755,-326.73412902,0.00011174,2]
[400997010,1767882631764,-164.52958141,0.00011205,2]
[400997011,1767882631773,-990.84832789,0.00011205,2]
[400997012,1767882631783,-990.84832789,0.00011205,2]
[400997013,1767882631792,-150.0,0.00011252,2]
[400997014,1767882631801,-500.0,0.00011253,2]
[400997015,1767882631813,-203.41881409,0.00011253,2]
[400997016,1767882631822,-271.61886266,0.00011253,2]
[400997017,1767882631832,-500.0,0.00011253,2]
[400997018,1767882631841,-500.0,0.00011253,2]
[400997019,1767882631851,-500.0,0.00011253,2]
[400997020,1767882631859,-500.0,0.00011253,2]
[400997021,1767882631869,-500.0,0.00011253,2]
[400997022,1767882631878,-500.0,0.00011253,2]
[400997023,1767882631887,-500.0,0.00011253,2]
[400997024,1767882631896,-500.0,0.00011253,2]
[400997025,1767882631905,-500.0,0.00011253,2]
[400997026,1767882631914,-500.0,0.00011253,2]
[400997027,1767882631923,-330.34198311,0.00011253,2]
[400997028,1767882631932,-500.0,0.00011253,2]
[400997029,1767882631941,-500.0,0.00011253,2]
[400997030,1767882631950,-500.0,0.00011253,2]
[400997031,1767882631960,-500.0,0.00011253,2]
[400997032,1767882631969,-500.0,0.00011253,2]
[400997033,1767882631978,-500.0,0.00011253,2]
[400997034,1767882631987,-500.0,0.00011253,2]
[400997035,1767882631996,-500.0,0.00011253,2]
[400997036,1767882632005,-500.0,0.00011253,2]
[400997037,1767882632014,-500.0,0.00011253,2]
[400997039,1767882632024,-500.0,0.00011253,2]
[400997041,1767882632033,-500.0,0.00011253,2]
[400997042,1767882632042,-500.0,0.00011253,2]
[400997043,1767882632052,-500.0,0.00011253,2]
[400997044,1767882632063,-500.0,0.00011253,2]
[400997045,1767882632072,-650.0,0.00011253,2]
[400997046,1767882632082,-57840.45208168,0.00011254,2]
[400997047,1767882632093,-128770.72666272,0.00011254,2]
[400997048,1767882632104,-35043.11472957,0.00011254,2]
[400997049,1767882632115,-477.97880591,0.00011254,2]
[400997050,1767882632127,-824.83,0.00011254,2]
[400997051,1767882632138,-2010.45162671,0.00011254,2]
[400997052,1767882632149,-6374.08985714,0.00011254,2]
[400997053,1767882632164,-282.33286881,0.00011254,2]
[400997054,1767882632182,-1794.47750331,0.00011254,2]
[400997055,1767882632193,-860.0,0.00011254,2]
[400997056,1767882632207,-298.75901328,0.00011254,2]
[400997057,1767882632232,-1342.64096061,0.00011254,2]
[400997058,1767882632247,-3124.78462949,0.00011254,2]
[400997059,1767882632258,-2471.96661148,0.00011254,2]
[400997060,1767882632269,-2354.96308394,0.00011254,2]
[400997064,1767882637645,-1443.45977058,0.00011254,2]
[400997065,1767882637707,-89499.97951348,0.00011254,2]
[400997066,1767882637720,-30868.43746983,0.00011254,2]
[400997067,1767882637731,-2687.46422822,0.00011254,2]
[400997068,1767882637766,-3044.36139034,0.00011254,2]
[400997069,1767882637777,-3668.9514904,0.00011254,2]
[400997070,1767882637788,-5134.39522056,0.00011254,2]
[400997071,1767882637800,-2297.43128867,0.00011254,2]
[400997072,1767882637814,-162715.37077836,0.00011254,2]
[400997073,1767882637825,-182678.99703832,0.00011254,2]
[400997074,1767882637836,-268.79999984,0.00011254,2]
[400997075,1767882637883,-267.0,0.00011254,2]
[400997230,1767882639689,-644.20590704,0.00011254,2]
[400997234,1767882639702,-1375.598704,0.00011254,2]
[400997237,1767882639713,-943.49055009,0.00011254,2]
[400997241,1767882639724,-1890.52566694,0.00011254,2]
[400997247,1767882639752,-266699.96254868,0.00011254,2]
[400997249,1767882639761,-602.68,0.00011305,2]
[400997251,1767882639770,-1500.0,0.00011354,2]
[400997253,1767882639780,-4987.2,0.00011354,2]
[400997255,1767882639790,-999.99,0.00011354,2]
[400997257,1767882639799,-9999.99,0.00011354,2]
[400997259,1767882639808,-150.99,0.00011354,2]
[400997261,1767882639819,-5441.69,0.00011354,2]
[400997263,1767882639828,-7213.28,0.00011354,2]
[400997265,1767882639837,-150.0,0.00011503,2]
[400997267,1767882639846,-164.77040348,0.00011503,2]
[400997269,1767882639855,-500.0,0.00011503,2]
[400997271,1767882639864,-150.0,0.00011503,2]
[400997273,1767882639873,-500.0,0.00011503,2]
[400997275,1767882639883,-150.0,0.00011503,2]
[400997277,1767882639892,-150.0,0.00011503,2]
[400997279,1767882639902,-150.0,0.00011503,2]
[400997281,1767882639911,-500.0,0.00011503,2]
[400997283,1767882639920,-150.0,0.00011503,2]
[400997285,1767882639930,-150.0,0.00011503,2]
[400997287,1767882639939,-500.0,0.00011503,2]
[400997289,1767882639949,-150.0,0.00011503,2]
[400997291,1767882639959,-500.0,0.00011558,2]
[400997293,1767882639968,-150.0,0.00011558,2]
[400997295,1767882639977,-500.0,0.00011558,2]
[400997297,1767882639986,-150.0,0.00011558,2]
[400997299,1767882639995,-150.0,0.00011558,2]
[400997301,1767882640005,-500.0,0.00011558,2]
[400997303,1767882640015,-150.0,0.00011558,2]
[400997305,1767882640024,-500.0,0.00011558,2]
[400997307,1767882640033,-150.0,0.00011558,2]
[400997309,1767882640043,-602.68,0.00011604,2]
[400997311,1767882640052,-2639.33,0.00011604,2]
[400997313,1767882640061,-195.0,0.00011605,2]
[400997315,1767882640071,-500.0,0.00011613,2]
[400997317,1767882640081,-150.0,0.00011613,2]
[400997319,1767882640090,-382.10117033,0.00011613,2]
[400997321,1767882640100,-200.0,0.00011613,2]
[400997323,1767882640109,-200.0,0.00011613,2]
[400997325,1767882640118,-500.0,0.00011613,2]
[400997326,1767882640128,-200.0,0.00011613,2]
[400997328,1767882640137,-500.0,0.00011613,2]
[400997330,1767882640147,-200.0,0.00011613,2]
[400997332,1767882640156,-490.48450822,0.00011667,2]
[400997334,1767882640165,-150.0,0.00011667,2]
[400997336,1767882640175,-500.0,0.00011667,2]
[400997338,1767882640184,-500.0,0.00011667,2]
[400997340,1767882640195,-150.0,0.00011713,2]
[400997342,1767882640204,-150.0,0.00011713,2]
[400997344,1767882640214,-500.0,0.00011713,2]
[400997347,1767882640223,-271.38436778,0.00011722,2]
[400997349,1767882640233,-322.14330526,0.00011722,2]
[400997351,1767882640242,-500.0,0.00011722,2]
[400997353,1767882640252,-300.0,0.0001176,2]
[400997355,1767882640262,-300.0,0.0001176,2]
[400997357,1767882640272,-300.0,0.0001176,2]
[400997359,1767882640282,-300.0,0.0001176,2]
[400997361,1767882640292,-300.0,0.0001176,2]
[400997363,1767882640302,-195.0,0.0001176,2]
[400997365,1767882640312,-250.0,0.0001176,2]
[400997367,1767882640323,-300.0,0.0001176,2]
[400997369,1767882640332,-188.94617776,0.0001176,2]
[400997371,1767882640342,-195.0,0.0001176,2]
[400997373,1767882640351,-195.0,0.0001176,2]
[400997375,1767882640360,-200.0,0.00011768,2]
[400997376,1767882640370,-500.0,0.00011768,2]
[400997378,1767882640379,-500.0,0.00011777,2]
[400997380,1767882640389,-173.0,0.00011823,2]
[400997382,1767882640399,-446.0,0.00011832,2]
[400997384,1767882640408,-151.0,0.0001198,2]
[400997386,1767882640417,-151.0,0.0001198,2]
[400997389,1767882640430,-151.0,0.0001198,2]
[400997391,1767882640439,-151.0,0.0001198,2]
[400997392,1767882640448,-151.0,0.0001198,2]
[400997394,1767882640457,-151.0,0.0001198,2]
[400997396,1767882640467,-151.0,0.0001198,2]
[400997406,1767882640552,-151.0,0.0001198,2]
[400997408,1767882640562,-151.0,0.0001198,2]
[400997410,1767882640572,-151.0,0.0001198,2]
[400997412,1767882640581,-151.0,0.0001198,2]
[400997414,1767882640590,-151.0,0.0001198,2]
[400997416,1767882640599,-151.0,0.0001198,2]
[400997418,1767882640609,-151.0,0.0001198,2]
[400997420,1767882640618,-151.0,0.0001198,2]
[400997422,1767882640636,-151.0,0.0001198,2]
[400997424,1767882640645,-151.0,0.0001198,2]
[400997426,1767882640654,-151.0,0.0001198,2]
[400997428,1767882640663,-151.0,0.0001198,2]
[400997430,1767882640673,-151.0,0.0001198,2]
[400997432,1767882640682,-151.0,0.0001198,2]
[400997434,1767882640691,-151.0,0.0001198,2]
[400997436,1767882640702,-151.0,0.0001198,2]
[400997437,1767882640711,-151.0,0.0001198,2]
[400997439,1767882640721,-151.0,0.0001198,2]
[400997441,1767882640730,-151.0,0.0001198,2]
[400997443,1767882640740,-151.0,0.0001198,2]
[400997445,1767882640750,-151.0,0.0001198,2]
[400997447,1767882640759,-151.0,0.0001198,2]
[400997449,1767882640768,-151.0,0.0001198,2]
[400997451,1767882640777,-151.0,0.0001198,2]
[400997453,1767882640787,-780.84,0.00011987,2]
[400997455,1767882640796,-173.15293317,0.00011988,2]
[400997457,1767882640806,-2545.257,0.00011993,2]
[400997459,1767882640819,-167.212,0.00011993,2]
[400997461,1767882640828,-6943.34230285,0.00012016,2]
[400997463,1767882640837,-1000.0,0.00012028,2]
[400997465,1767882640846,-420.0,0.0001212,2]
[400997467,1767882640855,-254.0,0.0001212,2]
[400997469,1767882640864,-420.0,0.0001212,2]
[400997471,1767882640873,-1680.0,0.00012133,2]
[400997473,1767882640883,-990.84832784,0.00012161,2]
[400997475,1767882640892,-990.84832784,0.00012161,2]
[400997477,1767882640901,-780.84,0.00012261,2]
[400997479,1767882640910,-255.0,0.0001231,2]
[400997481,1767882640919,-780.84,0.00012535,2]
[400997483,1767882640928,-171.28,0.00012594,2]
[400997485,1767882640937,-780.84,0.00012809,2]
[400997487,1767882640947,-500.0,0.00013,2]
[400997489,1767882640956,-780.84,0.00013083,2]
[400997491,1767882640969,-990.84832784,0.00013118,2]
[400997493,1767882640979,-990.84832784,0.00013118,2]
[400997495,1767882640988,-587.0,0.00013319,2]
[400997497,1767882640997,-587.0,0.00013319,2]
[400997499,1767882641007,-2351.0,0.00013346,2]
[400997501,1767882641016,-780.84,0.00013357,2]
[400997503,1767882641026,-1000.0,0.00013364,2]
[400997505,1767882641035,-433.0,0.00013469,2]
[400997507,1767882641045,-780.84,0.00013631,2]
[400997509,1767882641054,-500.0,0.00013698,2]
[400997511,1767882641067,-502.10445571,0.00013698,2]
[400997513,1767882641076,-500.0,0.00013698,2]
[400997515,1767882641086,-500.0,0.00013698,2]
[400997517,1767882641095,-500.0,0.00013698,2]
[400997519,1767882641106,-500.0,0.00013698,2]
[400997521,1767882641115,-500.0,0.00013698,2]
[400997523,1767882641125,-500.0,0.00013698,2]
[400997525,1767882641134,-500.0,0.00013698,2]
[400997527,1767882641143,-500.0,0.00013698,2]
[400997529,1767882641152,-621.72362606,0.00013698,2]
[400997531,1767882641161,-500.0,0.00013698,2]
[400997533,1767882641170,-500.0,0.00013698,2]
[400997535,1767882641180,-500.0,0.00013698,2]
[400997537,1767882641190,-509.20271635,0.00013698,2]
[400997539,1767882641200,-500.0,0.00013698,2]
[400997541,1767882641209,-500.0,0.00013698,2]
[400997543,1767882641218,-500.0,0.00013698,2]
[400997544,1767882641227,-500.0,0.00013698,2]
[400997546,1767882641236,-500.0,0.00013698,2]
[400997548,1767882641245,-500.0,0.00013698,2]
[400997550,1767882641255,-500.0,0.00013698,2]
[400997552,1767882641264,-500.0,0.00013698,2]
[400997555,1767882641274,-500.0,0.00013698,2]
[400997556,1767882641283,-512.68399457,0.00013698,2]
[400997559,1767882641292,-500.0,0.00013698,2]
[400997560,1767882641302,-508.0483956,0.00013698,2]
[400997562,1767882641311,-500.0,0.00013698,2]
[400997564,1767882641322,-521.20759762,0.00013698,2]
[400997566,1767882641332,-500.0,0.00013698,2]
[400997568,1767882641341,-516.18277591,0.00013698,2]
[400997570,1767882641350,-446.86331983,0.00013698,2]
[400997572,1767882641361,-200.0,0.00013699,2]
[400997574,1767882641370,-780.88,0.00013905,2]
[400997576,1767882641379,-173.15293317,0.00013959,2]
[400997578,1767882641388,-151.0,0.00014006,2]
[400997580,1767882641398,-5284.10968142,0.00014047,2]
[400997582,1767882641408,-990.84832784,0.00014074,2]
[400997584,1767882641417,-250.0,0.00014127,2]
[400997586,1767882641427,-151.0,0.00014314,2]
[400997588,1767882641436,-151.0,0.00014314,2]
[400997590,1767882641445,-199.19,0.00014366,2]
[400997592,1767882641454,-151.0,0.00014373,2]
[400997594,1767882641464,-151.0,0.00014373,2]
[400997596,1767882641473,-151.0,0.00014381,2]
[400997598,1767882641482,-151.0,0.00014381,2]
[400997600,1767882641492,-151.0,0.00014395,2]
[400997602,1767882641502,-151.0,0.00014403,2]
[400997604,1767882641511,-151.0,0.00014403,2]
[400997606,1767882641520,-151.0,0.00014403,2]
[400997608,1767882641533,-823.0,0.00014635,2]
[400997610,1767882641542,-823.0,0.00014635,2]
[400997612,1767882641551,-3292.0,0.00014681,2]
[400997614,1767882641560,-151.0,0.00014686,2]
[400997615,1767882641571,-5284.10968142,0.00014689,2]
[400997618,1767882641581,-1000.0,0.000147,2]
[400997619,1767882641590,-736.0,0.00014729,2]
[400997622,1767882641600,-500.0,0.00014763,2]
[400997624,1767882641610,-500.83541562,0.00014763,2]
[400997626,1767882641621,-500.0,0.00015,2]
[400997628,1767882641631,-1118.76,0.00015198,2]
[400997629,1767882641640,-2113.75,0.00015202,2]
[400997632,1767882641650,-1476.79,0.00015254,2]
[400997634,1767882641659,-1000.0,0.0001531,2]
[400997636,1767882641670,-5284.10968142,0.00015332,2]
[400997638,1767882641679,-3467.0,0.00015622,2]
[400997639,1767882641688,-166.67,0.00015661,2]
[400997642,1767882641701,-200.0,0.00015662,2]
[400997644,1767882641710,-163.0,0.000157,2]
[400997646,1767882641719,-299.99271759,0.00015848,2]
[400997648,1767882641729,-1500.0,0.00015858,2]
[400997650,1767882641738,-1394.50400655,0.000159,2]
[400997652,1767882641747,-1394.50400652,0.000159,2]
[400997654,1767882641756,-1394.50400652,0.000159,2]
[400997656,1767882641767,-1394.50400652,0.000159,2]
[400997658,1767882641776,-1394.50400652,0.000159,2]
[400997660,1767882641786,-1394.50400652,0.000159,2]
[400997662,1767882641795,-173.15293317,0.00015929,2]
[400997664,1767882641804,-157.72323008,0.00015961,2]
[400997666,1767882641813,-5284.10968142,0.00015974,2]
[400997668,1767882641824,-169297.4418947,0.00016,2]
[400997669,1767882641833,-164.52958141,0.00016016,2]
[400997671,1767882641843,-1000.0,0.00016037,2]
[400997674,1767882641852,-1152.0,0.00016082,2]
[400997675,1767882641861,-1152.0,0.00016082,2]
[400997677,1767882641870,-1252.0,0.00016113,2]
[400997679,1767882641879,-9999.99,0.00016116,2]
[400997681,1767882641889,-1336.36,0.00016116,2]
[400997683,1767882641898,-218.49130081,0.00016128,2]
[400997686,1767882641907,-4609.0,0.00016149,2]
[400997688,1767882641918,-152.0,0.00016283,3]
[400997690,1767882641931,-505.0,0.00016352,2]
[400997692,1767882641940,-1266.0,0.00016352,2]
[400997694,1767882641950,-1201.0,0.00016352,2]
[400997696,1767882641959,-914.0,0.00016352,2]
[400997698,1767882641968,-1330.0,0.00016352,2]
[400997700,1767882641977,-1405.0,0.00016352,2]
[400997702,1767882641987,-2000.0,0.00016406,2]
[400997704,1767882641996,-500.0,0.00016424,2]
[400997706,1767882642005,-322.61070001,0.00016424,2]
[400997708,1767882642014,-151.0,0.00016424,2]
[400997710,1767882642023,-1500.0,0.00016424,2]
[400997712,1767882642032,-1500.0,0.00016424,2]
[400997714,1767882642042,-1500.0,0.00016424,2]
[400997716,1767882642050,-1500.0,0.00016424,2]
[400997718,1767882642059,-1500.0,0.00016424,2]
[400997720,1767882642070,-1500.0,0.00016424,2]
[400997722,1767882642079,-1500.0,0.00016424,2]
[400997724,1767882642089,-1500.0,0.00016424,2]
[400997726,1767882642098,-1500.0,0.00016424,2]
[400997728,1767882642107,-238.63712889,0.00016424,2]
[400997730,1767882642117,-500.0,0.00016424,2]
[400997732,1767882642126,-500.0,0.00016424,2]
[400997734,1767882642135,-578.20924308,0.00016424,2]
[400997736,1767882642144,-500.0,0.00016424,2]
[400997738,1767882642153,-500.0,0.00016424,2]
[400997740,1767882642163,-500.0,0.00016424,2]
[400997742,1767882642172,-500.0,0.00016424,2]
[400997744,1767882642181,-500.0,0.00016424,2]
[400997746,1767882642190,-500.0,0.00016424,2]
[400997748,1767882642199,-250.0,0.00016424,2]
[400997750,1767882642208,-500.0,0.00016424,2]
[400997752,1767882642218,-500.0,0.00016424,2]
[400997754,1767882642227,-500.0,0.00016424,2]
[400997756,1767882642237,-500.0,0.00016424,2]
[400997758,1767882642246,-500.0,0.00016424,2]
[400997760,1767882642256,-500.0,0.00016424,2]
[400997762,1767882642265,-500.0,0.00016424,2]
[400997764,1767882642274,-500.0,0.00016424,2]
[400997766,1767882642284,-500.0,0.00016424,2]
[400997768,1767882642294,-500.0,0.00016424,2]
[400997771,1767882642307,-500.0,0.00016424,2]
[400997773,1767882642316,-500.0,0.00016424,2]
[400997775,1767882642328,-500.0,0.00016424,2]
[400997777,1767882642338,-151.0,0.00016424,2]
[400997778,1767882642347,-500.0,0.00016424,2]
[400997780,1767882642357,-250.0,0.00016424,2]
[400997782,1767882642367,-500.0,0.00016424,2]
[400997784,1767882642376,-250.0,0.00016424,2]
[400997786,1767882642386,-620.0,0.00016424,2]
[400997789,1767882642395,-500.0,0.00016424,2]
[400997790,1767882642405,-250.0,0.00016424,2]
[400997794,1767882642415,-166.77833559,0.00016424,2]
[400997797,1767882642426,-500.0,0.00016424,2]
[400997800,1767882642435,-500.0,0.00016424,2]
[400997801,1767882642445,-529.58639713,0.00016424,2]
[400997803,1767882642454,-300.0,0.00016424,2]
[400997805,1767882642463,-151.0,0.00016424,2]
[400997808,1767882642473,-2000.0,0.00016424,2]
[400997811,1767882642482,-2000.0,0.00016424,2]
[400997815,1767882642491,-2000.0,0.00016424,2]
[400997818,1767882642500,-2000.0,0.00016424,2]
[400997821,1767882642510,-500.0,0.00016424,2]
[400997823,1767882642519,-500.0,0.00016424,2]
[400997825,1767882642528,-500.0,0.00016424,2]
[400997827,1767882642537,-500.0,0.00016424,2]
[400997829,1767882642546,-500.0,0.00016424,2]
[400997831,1767882642556,-500.0,0.00016424,2]
[400997833,1767882642565,-500.0,0.00016424,2]
[400997835,1767882642580,-500.0,0.00016424,2]
[400997837,1767882642589,-500.0,0.00016424,2]
[400997839,1767882642598,-500.0,0.00016424,2]
[400997841,1767882642608,-272.12855637,0.00016424,2]
[400997843,1767882642617,-500.0,0.00016438,2]
[400997845,1767882642629,-500.0,0.00016438,2]
[400997847,1767882642639,-500.0,0.00016438,2]
[400997849,1767882642649,-500.0,0.00016438,2]
[400997851,1767882642658,-170.19289972,0.00016438,2]
[400997854,1767882642668,-500.0,0.00016438,2]
[400997856,1767882642679,-18976.67,0.00016438,2]
[400997858,1767882642688,-1000.0,0.00016564,2]
[400997860,1767882642702,-5284.10968142,0.00016616,2]
[400997862,1767882642711,-1000.0,0.00016679,2]
[400997864,1767882642720,-750.1,0.00016743,2]
[400997866,1767882642730,-150.0,0.00016821,2]
[400997868,1767882642739,-150.0,0.00016821,2]
[400997870,1767882642748,-150.0,0.00016821,2]
[400997872,1767882642757,-150.0,0.00016821,2]
[400997874,1767882642766,-150.0,0.00016821,2]
[400997876,1767882642776,-500.0,0.00016821,2]
[400997878,1767882642785,-150.0,0.00016821,2]
[400997880,1767882642795,-157.72323008,0.00016848,2]
[400997882,1767882642803,-750.1,0.00016857,2]
[400997884,1767882642813,-200.0,0.00016876,2]
[400997886,1767882642827,-150.0,0.00016876,2]
[400997888,1767882642836,-150.0,0.00016876,2]
[400997890,1767882642845,-150.0,0.00016876,2]
[400997891,1767882642854,-150.0,0.00016876,2]
[400997892,1767882642864,-500.88287597,0.00016876,2]
[400997893,1767882642873,-217.19962447,0.00016876,2]
[400997894,1767882642882,-150.0,0.00016931,2]
[400997895,1767882642891,-166.67,0.00016953,2]
[400997896,1767882642900,-2500.0,0.00016954,2]
[400997897,1767882642909,-750.1,0.00016972,2]
[400997898,1767882642919,-311.1,0.00016972,2]
[400997899,1767882642928,-151.0,0.00016972,2]
[400997900,1767882642937,-150.0,0.00016985,2]
[400997901,1767882642947,-1649.29,0.00017,2]
[400997902,1767882642956,-250.0,0.00017,2]
[400997903,1767882642965,-1375.17747762,0.00017,2]
[400997904,1767882642975,-500.0,0.00017,5]
[400997905,1767882642984,-4000.0,0.00017,2]
[400997906,1767882642993,-150.0,0.0001704,2]
[400997907,1767882643002,-1000.0,0.00017055,2]
[400997909,1767882643011,-750.1,0.00017086,2]
[400997911,1767882643020,-250.0,0.00017095,2]
[400997913,1767882643030,-1000.0,0.00017109,2]
[400997915,1767882643039,-1000.0,0.00017112,2]
[400997917,1767882643048,-1000.0,0.00017142,2]
[400997919,1767882643057,-300.0,0.00017176,2]
[400997921,1767882643067,-500.0,0.000172,2]
[400997923,1767882643079,-750.1,0.000172,2]
[400997925,1767882643090,-152.0,0.00017231,4]
[400997927,1767882643099,-5284.10968142,0.00017258,2]
[400997929,1767882643108,-300.0,0.00017273,2]
[400997931,1767882643118,-750.1,0.00017314,2]
[400997933,1767882643127,-750.1,0.00017429,2]
[400997935,1767882643136,-300.0,0.00017461,2]
[400997937,1767882643146,-300.0,0.00017473,2]
[400997939,1767882643156,-300.0,0.00017493,2]
[400997941,1767882643165,-2000.0,0.000175,2]
[400997943,1767882643175,-500.0,0.000175,3]
[400997945,1767882643184,-3000.0,0.00017502,2]
[400997947,1767882643193,-388.95155261,0.0001752,2]
[400997950,1767882643203,-151.0,0.0001752,2]
[400997952,1767882643213,-750.1,0.00017543,2]
[400997954,1767882643222,-300.0,0.00017599,2]
[400997956,1767882643232,-300.0,0.00017631,2]
[400997958,1767882643241,-2129.0,0.00017632,2]
[400997960,1767882643252,-300.0,0.00017637,2]
[400997962,1767882643261,-7551.57044864,0.0001764,2]
[400997964,1767882643270,-750.1,0.00017657,2]
[400997966,1767882643280,-272.405,0.00017667,2]
[400997968,1767882643289,-1613.0,0.00017672,2]
[400997970,1767882643298,-271.0,0.00017672,2]
[400997972,1767882643307,-300.0,0.00017689,2]
[400997974,1767882643317,-157.72323008,0.00017735,2]
[400997976,1767882643331,-6453.0,0.00017764,2]
[400997978,1767882643340,-750.1,0.00017771,2]
[400997980,1767882643350,-25000.0,0.00017812,3]
[400997982,1767882643360,-1000.0,0.00017819,2]
[400997984,1767882643369,-402.14488,0.0001782,2]
[400997986,1767882643378,-402.14488,0.0001782,2]
[400997988,1767882643388,-25000.0,0.00017821,3]
[400997990,1767882643397,-168.0,0.00017826,2]
[400997992,1767882643406,-25000.0,0.0001783,3]
[400997996,1767882643416,-1047.53522858,0.0001783,2]